bitfinex-derivatives/quotes_ETHF0:USTF0_20250403
["timestamp","ask_amount","ask_price","bid_price","bid_amount"]
[1743688297648,4.973,1788.7,1788.5,3.2078]
[1743688297843,4.973,1788.7,1788.4,3.2078]
[1743688298052,4.973,1788.7,1788.4,40.8]
[1743688298256,1.11845,1788.5,1788.4,40.8]
[1743688298652,1.11884,1787.9,1787.6,0.00840735]
[1743688298852,6.08984,1787.9,1787.6,6.21969735]
[1743688299057,6.08984,1787.9,1787.7,1.8845]
[1743688299252,4.971,1787.9,1787.6,0.00840735]
[1743688299444,1.11895,1787.7,1787.6,0.00840735]
[1743688299854,3.61895,1787.7,1787.6,0.00840735]
[1743688300155,6.82675,1787.7,1787.6,0.00840735]
[1743688300557,5.7078,1787.7,1787.2,1.8993]
[1743688300750,1.11912,1787.5,1787.2,6.22636]
[1743688300949,4.971,1787.4,1787.2,1.8993]
[1743688301146,4.971,1787.4,1787.2,3.01853]
[1743688301352,4.32678,1787.7,1787.4,1.11912]
[1743688301552,4.97,1787.6,1787.2,5.1071]
[1743688301850,1.12740735,1787.7,1787.4,1.12754735]
[1743688302054,4.97,1787.6,1787.5,1.11907]
[1743688302250,4.97,1787.6,1787.4,0.00840735]
[1743688302556,3.14478,1787.5,1787.4,0.00840735]
[1743688302954,5.64478,1787.5,1787.4,0.00840735]
[1743688303255,10.53122,1787.5,1787.0,3.2078]
[1743688303460,1.1193,1787.2,1787.0,3.2078]
[1743688303659,7.0004,1787.1,1787.0,3.2078]
[1743688304052,7.0004,1787.1,1787.0,4.32719]
[1743688304252,7.0004,1787.1,1787.0,3.2078]
[1743688304953,4.969,1787.3,1787.2,1.11927]
[1743688305263,4.969,1787.3,1787.2,4.32707]
[1743688305455,4.969,1787.3,1787.2,1.11927]
[1743688306154,2.0304,1787.4,1787.3,1.1192]
[1743688306355,6.9994,1787.4,1787.3,3.0768]
[1743688306859,4.969,1787.4,1787.3,3.0768]
[1743688307165,6.08804,1787.6,1787.4,1.11912]
[1743688307352,4.969,1787.6,1787.5,1.11908]
[1743688307557,0.00840735,1787.7,1787.6,1.11901]
[1743688307765,0.00840735,1787.7,1787.6,4.32681]
[1743688307965,6.94790735,1787.7,1787.6,1.11901]
[1743688308264,0.00840735,1787.7,1787.6,4.32681]
[1743688308567,1.11901,1787.6,1787.5,40.8]
[1743688308761,10.1881,1787.6,1787.1,3.2078]
[1743688308967,1.11916,1787.4,1787.2,1.11924]
[1743688309162,10.1881,1787.6,1787.2,40.8]
[1743688309163,3.1315,1787.3,1787.2,40.8]
[1743688309567,1.11927,1787.2,1787.1,3.2078]
[1743688309860,6.9803,1787.2,1787.0,1.11938]
[1743688310163,2.01690735,1787.7,1787.1,44.0078]
[1743688310370,2.0123,1787.5,1787.4,1.11914]
[1743688310668,2.01690735,1787.7,1787.6,1.11901]
[1743688310871,4.02920735,1787.7,1787.6,1.11901]
[1743688311070,1.11904,1787.6,1787.4,1.11911]
[1743688311269,3.13138,1787.5,1787.4,1.11911]
[1743688311457,5.2201,1787.5,1787.1,40.8]
[1743688311662,6.00588,1787.3,1786.9,0.00840735]
[1743688311862,1.11939,1787.0,1786.9,0.00840735]
[1743688312066,6.08739,1787.0,1786.9,0.00840735]
[1743688312266,14.30389,1787.0,1786.9,0.00840735]
[1743688313474,10.6845,1787.0,1786.9,0.00840735]
[1743688313871,10.6845,1787.0,1786.9,1.12785735]
[1743688314075,8.7626,1787.0,1786.9,0.00840735]
[1743688314267,9.88199,1787.0,1786.9,0.00840735]
[1743688314668,1.9068,1787.0,1786.9,1.12785735]
[1743688314868,5.0782,1787.3,1787.1,1.11932]
[1743688315167,5.0782,1787.3,1786.9,0.00840735]
[1743688315168,7.95749,1787.2,1787.0,3.09616]
[1743688315475,6.8382,1787.2,1787.1,1.11933]
[1743688315776,4.967,1787.2,1787.1,4.32713]
[1743688316778,56.432,1787.6,1787.5,1.11908]
[1743688317079,6.08605,1787.6,1787.5,1.11908]
[1743688317270,6.08605,1787.6,1787.4,4.32689]
[1743688317569,6.08601,1787.6,1787.5,42.7768]
[1743688317770,4.967,1787.6,1787.5,43.89588]
[1743688317977,4.97540735,1787.7,1787.6,1.11901]
[1743688318373,0.00840735,1787.7,1787.6,1.11901]
[1743688318577,6.09439735,1787.7,1787.5,43.89585]
[1743688318771,4.97540735,1787.7,1787.6,1.11901]
[1743688318971,4.97540735,1787.7,1787.6,4.32681]
[1743688319278,4.97540735,1787.7,1787.6,1.11901]
[1743688319477,6.09435735,1787.7,1787.5,43.89583]
[1743688319673,1.9415,1787.6,1787.5,43.89588]
[1743688319876,4.97540735,1787.7,1787.6,1.11901]
[1743688320181,6.09439735,1787.7,1787.5,43.89585]
[1743688320372,4.97540735,1787.7,1787.6,1.11901]
[1743688320677,0.00840735,1787.7,1787.6,4.32681]
[1743688320873,0.00840735,1787.7,1787.6,6.82681]
[1743688321076,7.8963,1788.4,1787.6,6.82681]
[1743688321077,4.966,1788.3,1787.6,5.7078]
[1743688321269,4.966,1788.5,1788.4,1.11851]
[1743688321674,1.9404,1788.6,1788.3,5.0975]
[1743688321884,1.9404,1788.6,1788.5,1.11845]
[1743688321885,6.9064,1788.6,1788.5,1.11845]
[1743688322176,6.9064,1788.6,1788.3,5.0975]
[1743688322177,8.0248,1788.6,1788.4,3.01657735]
[1743688322582,6.9064,1788.6,1788.4,1.89810735]
[1743688322782,6.9064,1788.6,1788.5,1.11845]
[1743688322980,0.00840735,1788.7,1788.6,1.11839]
[1743688323281,0.00840735,1788.7,1788.6,3.00809]
[1743688323780,0.00840735,1788.7,1788.6,5.50809]
[1743688323979,8.1718,1789.2,1788.6,46.30809]
[1743688324172,4.964,1789.2,1788.8,3.2078]
[1743688324369,8.1718,1789.2,1788.8,3.2078]
[1743688324573,3.0188,1789.1,1788.9,1.1182]
[1743688324772,1.9007,1789.1,1789.0,1.11814]
[1743688324971,4.964,1789.2,1789.1,1.11808]
[1743688324972,4.97240735,1789.2,1789.1,1.11808]
[1743688325180,0.00840735,1789.2,1789.1,3.05698]
[1743688325378,0.00840735,1789.2,1789.1,5.55698]
[1743688325778,5.1085,1789.6,1789.5,1.11783]
[1743688325979,5.1085,1789.6,1789.2,3.2078]
[1743688326284,1.9007,1789.6,1789.3,1.9389]
[1743688326485,1.9007,1789.6,1789.1,40.8]
[1743688326486,3.2078,1789.4,1789.1,40.8]
[1743688326781,6.8627,1789.3,1789.1,1.11807]
[1743688326980,6.8627,1789.3,1789.1,0.00838293]
[1743688327194,7.9807,1789.3,1789.1,0.00838293]
[1743688327482,6.8627,1789.3,1789.1,0.00838293]
[1743688327674,4.32581,1789.2,1789.1,0.00838293]
[1743688327875,6.38051,1789.2,1789.1,0.00838293]
[1743688328087,8.88051,1789.2,1789.1,0.00838293]
[1743688328385,2.5,1789.2,1789.1,0.00838293]
[1743688328581,5.67271,1789.2,1789.1,0.00838293]
[1743688328888,3.17271,1789.2,1789.1,0.00838293]
[1743688329177,2.0547,1789.2,1789.1,0.00838293]
[1743688329386,0.00838293,1789.4,1789.3,1.11795]
[1743688329788,0.00838293,1789.4,1789.2,3.05228]
[1743688330083,0.00838293,1789.4,1789.3,1.11795]
[1743688330282,0.00838293,1789.4,1789.2,1.9343]
[1743688330479,0.00838293,1789.4,1789.3,1.11795]
[1743688330679,2.93e-06,1789.4,1789.3,1.11795]
[1743688330886,5.03766,1790.6,1789.4,3.2078]
[1743688331077,13.9443,1790.6,1789.8,3.2078]
[1743688331283,1.11738,1790.3,1790.0,4.32529]
[1743688331481,0.44101807,1790.5,1790.0,4.32529]
[1743688331678,4.96,1790.2,1790.0,1.11747]
[1743688331987,1.11751,1790.0,1789.9,1.87358293]
[1743688332479,2.97249,1790.1,1789.9,0.00838293]
[1743688332680,1.11751,1790.0,1789.9,0.00838293]
[1743688332881,1.9524,1790.0,1789.9,0.00838293]
[1743688333076,4.96,1790.2,1790.0,1.11749]
[1743688333281,4.96,1790.2,1790.1,3.04695]
[1743688333584,4.96,1790.2,1789.9,3.21618293]
[1743688333779,1.9524,1790.1,1789.9,1.93788293]
[1743688333986,1.11751,1790.0,1789.9,1.93788293]
[1743688334476,1.11751,1790.0,1789.9,0.00838293]
[1743688334789,1.9524,1790.1,1789.9,0.00838293]
[1743688334986,1.11751,1790.0,1789.9,0.00838293]
[1743688335985,8.1658,1790.0,1789.5,3.2078]
[1743688336185,1.11776,1789.6,1789.5,3.2078]
[1743688336488,6.07576,1789.6,1789.5,3.2078]
[1743688336986,4.958,1789.6,1789.5,3.2078]
[1743688337187,1.11795,1789.3,1789.2,3.2078]
[1743688337379,10.25244,1789.6,1789.0,5.2349]
[1743688337380,1.1181,1789.1,1789.0,5.2349]
[1743688337587,6.0751,1789.1,1789.0,5.2349]
[1743688337890,4.957,1789.1,1789.0,6.35304]
[1743688338094,4.957,1789.1,1789.0,5.2349]
[1743688338390,4.957,1789.1,1789.0,6.35304]
[1743688338593,6.07508,1789.1,1789.0,5.2349]
[1743688338890,6.43255958,1789.5,1789.0,3.14524]
[1743688339187,6.0749,1789.4,1789.2,4.32578]
[1743688339392,6.0749,1789.4,1789.3,2.0046]
[1743688339585,4.957,1789.4,1789.3,3.12255]
[1743688339781,4.957,1789.4,1789.3,2.0046]
[1743688339988,4.957,1789.4,1789.3,3.12255]
[1743688340388,6.07489,1789.4,1789.3,2.0046]
[1743688340788,1.11808,1789.1,1789.0,3.2078]
[1743688341094,1.11814,1789.0,1788.9,0.00838293]
[1743688341386,8.05114,1789.0,1788.9,2.93e-06]
[1743688341588,11.25894,1789.0,1788.9,2.93e-06]
[1743688341792,11.35751168,1789.0,1788.9,2.93e-06]
[1743688342191,11.35751034,1789.0,1788.9,2.93e-06]
[1743688342488,13.85751034,1789.0,1788.9,2.93e-06]
[1743688342792,70.22251034,1789.0,1788.9,2.93e-06]
[1743688342988,5.59205,1788.6,1787.9,3.2078]
[1743688343189,1.11874,1788.1,1787.9,4.32661]
[1743688343381,4.957,1788.1,1787.7,3.2078]
[1743688343587,4.957,1788.1,1787.8,2.0054]
[1743688343588,1.11883,1787.9,1787.8,2.0054]
[1743688343786,1.967,1788.0,1787.5,5.0997]
[1743688343992,6.07578,1788.0,1787.9,3.2078]
[1743688344288,6.07576,1788.0,1787.8,1.11886]
[1743688344484,0.00838293,1788.1,1787.9,5.2132]
[1743688344690,0.00838293,1788.1,1788.0,1.11876]
[1743688344890,0.00838293,1788.1,1788.0,3.12416]
[1743688345292,0.00838293,1788.1,1788.0,42.8054]
[1743688345587,6.08308293,1788.1,1788.0,42.8054]
[1743688345992,6.08308293,1788.1,1788.0,40.8]
[1743688346192,0.00838293,1788.1,1788.0,40.8]
[1743688346391,6.08408293,1788.1,1788.0,42.8322]
[1743688347193,0.00838293,1788.1,1788.0,43.95096]
[1743688347492,0.00838293,1788.1,1788.0,46.45096]
[1743688347691,2.4653793,1788.5,1788.4,1.11851]
[1743688347891,3.5838293,1788.5,1788.4,3.2078]
[1743688348399,2.4653793,1788.5,1788.4,46.99841]
[1743688349095,4.956,1789.3,1788.6,2.79597]
[1743688349293,3.00884,1789.2,1789.1,3.2078]
[1743688349494,1.11798,1789.3,1789.1,6.19796]
[1743688349794,9.63265,1789.6,1789.4,1.11786]
[1743688349795,1.11778,1789.6,1789.4,1.11786]
[1743688349995,1.11778,1789.6,1789.5,42.6721]
[1743688350292,4.957,1789.7,1789.5,43.7899]
[1743688350293,0.0055144,1789.7,1789.5,43.7899]
[1743688350488,1.1232544,1789.7,1789.6,3.2078]
[1743688350890,1.11776,1789.6,1789.5,42.6721]
[1743688351091,1.8963144,1789.7,1789.4,3.21618293]
[1743688351092,1.11783,1789.5,1789.4,0.00838293]
[1743688351399,1.11808,1789.1,1789.0,1.9808]
[1743688351790,6.07406,1789.2,1789.0,1.9808]
[1743688352097,6.07405,1789.2,1789.0,3.09893]
[1743688352294,1.11814,1789.0,1788.9,3.2078]
[1743688352495,1.11814,1789.0,1788.9,5.1886]
[1743688353400,1.11814,1789.0,1788.9,3.2078]
[1743688353899,1.11814,1789.0,1788.9,5.1886]
[1743688354300,2.975,1789.1,1788.9,5.1886]
[1743688354495,1.1182,1788.9,1788.8,0.00838293]
[1743688355292,3.6182,1788.9,1788.8,0.00838293]
[1743688355999,1.1182,1788.9,1788.8,3.21618293]
[1743688356196,3.6182,1788.9,1788.8,0.00838293]
[1743688357192,5.7078,1788.9,1787.8,6.33838]
[1743688357498,1.11895,1787.8,1787.6,3.2078]
[1743688357699,4.955,1787.8,1787.7,3.00435]
[1743688357898,4.955,1787.8,1787.7,1.8854]
[1743688358095,6.07389,1787.8,1787.7,1.8854]
[1743688358292,4.955,1787.8,1787.7,1.8854]
[1743688358494,6.07389,1787.8,1787.7,1.8854]
[1743688358694,4.955,1787.8,1787.7,3.00435]
[1743688359296,6.07389,1787.8,1787.7,1.8854]
[1743688359710,4.955,1787.8,1787.7,1.8854]
[1743688359896,0.00838293,1787.9,1787.7,4.3854]
[1743688360101,0.00838293,1787.9,1787.8,4.32669]
[1743688360802,6.07259,1788.3,1788.1,1.11868]
[1743688360995,6.07259,1788.3,1788.2,5.203]
[1743688361198,1.1188,1788.0,1787.9,3.2078]
[1743688361503,1.1188,1788.0,1787.9,1.9952]
[1743688362598,1.11895,1787.7,1787.6,0.00838293]
[1743688362804,4.96338293,1788.1,1787.6,2.00358293]
[1743688363000,1.11879,1788.0,1787.8,4.32668]
[1743688363199,1.11879,1788.0,1787.9,1.9952]
[1743688363899,5.29701,1788.0,1787.6,3.21618293]
[1743688364100,1.11895,1787.7,1787.6,3.21618293]
[1743688364297,6.07395,1787.7,1787.6,3.21618293]
[1743688364501,6.07395,1787.7,1787.6,44.01618293]
[1743688364707,8.57395,1787.7,1787.6,0.00838293]
[1743688364902,1.11917,1787.4,1787.2,3.2078]
[1743688365101,13.46021,1787.7,1787.2,3.2078]
[1743688365102,4.955,1787.7,1787.3,1.8559]
[1743688365299,9.6275,1787.7,1787.3,42.6559]
[1743688365504,1.11914,1787.4,1787.3,42.6559]
[1743688365699,1.11914,1787.4,1787.3,40.8]
[1743688367505,1.1192,1787.3,1787.2,2.93e-06]
[1743688367709,1.11958,1786.7,1786.6,3.2078]
[1743688368004,6.07458,1786.7,1786.6,44.0078]
[1743688368601,1.11977,1786.4,1786.3,3.2078]
[1743688368804,1.9254,1786.6,1786.3,3.2078]
[1743688369004,1.11977,1786.4,1786.3,3.2078]
[1743688369305,1.11983,1786.3,1786.2,1.90908293]
[1743688369506,6.07483,1786.3,1786.2,0.00838293]
[1743688370005,4.955,1786.3,1786.2,1.12827293]
[1743688370399,6.07575,1786.5,1786.2,0.00838293]
[1743688370603,4.956,1786.5,1786.3,3.2078]
[1743688370803,6.07572,1786.5,1786.3,4.32761]
[1743688371004,1.11983,1786.3,1786.2,0.00838293]
[1743688371315,1.1198,1786.4,1786.2,0.00838293]
[1743688371610,1.11977,1786.4,1786.3,3.2078]
[1743688371802,1.891,1786.7,1786.3,3.2078]
[1743688371803,4.956,1786.5,1786.3,4.32759]
[1743688372407,4.956,1786.5,1786.4,1.11977]
[1743688372615,6.08393293,1786.8,1786.3,8.50733]
[1743688372914,6.08393293,1786.8,1786.6,3.2078]
[1743688373111,0.00838293,1786.8,1786.7,1.11958]
[1743688373303,0.00838293,1786.8,1786.7,3.61958]
[1743688374416,6.0763,1787.2,1786.8,2.79879]
[1743688374600,2.0211,1787.7,1787.1,3.2078]
[1743688374814,1.11911,1787.5,1787.4,3.2078]
[1743688375113,4.64821,1787.9,1787.4,3.2078]
[1743688375301,1.11906,1787.6,1787.4,1.11914]
[1743688375503,1.11895,1787.7,1787.6,3.2078]
[1743688375701,1.12733293,1787.7,1787.6,3.2078]
[1743688378313,2.97728,1787.5,1787.4,3.2078]
[1743688378914,0.00838293,1787.7,1787.4,5.7078]
[1743688379212,0.00838293,1787.7,1787.6,4.32681]
[1743688379512,0.00838293,1787.7,1787.6,3.2078]
[1743688379908,1.12733293,1787.7,1787.6,3.2078]
[1743688380102,1.12735293,1787.7,1787.4,4.32692]
[1743688380304,0.00838293,1787.7,1787.4,3.2078]
[1743688380611,2.0404,1787.6,1787.4,3.2078]
[1743688380808,0.00838293,1787.7,1787.4,3.2078]
[1743688381012,1.12733293,1787.7,1787.6,3.2078]
[1743688381313,0.00838293,1787.7,1787.6,4.32681]
[1743688381613,0.00838293,1787.7,1787.6,3.2078]
[1743688381804,0.00838293,1787.7,1787.4,3.2078]
[1743688382001,4.954,1787.6,1787.4,3.2078]
[1743688382209,1.11908,1787.5,1787.4,3.2078]
[1743688382512,3.04208,1787.5,1787.4,3.2078]
[1743688383615,1.11908,1787.5,1787.4,5.2045]
[1743688384112,4.954,1787.6,1787.4,5.2045]
[1743688384308,1.11908,1787.5,1787.4,5.2045]
[1743688384613,4.954,1787.6,1787.4,5.2045]
[1743688385113,1.11868,1788.2,1787.4,15.45632]
[1743688385409,4.954,1788.3,1787.8,3.2078]
[1743688385608,1.11876,1788.0,1787.9,2.0458]
[1743688385804,1.11914,1787.4,1787.3,0.00838293]
[1743688386010,6.07314,1787.4,1787.3,0.00838293]
[1743688386514,7.92854,1787.4,1787.3,0.00838293]
[1743688387109,9.91854,1787.4,1787.3,0.00838293]
[1743688388206,1.11927,1787.2,1787.1,40.8]
[1743688388612,1.11927,1787.2,1787.1,42.6643]
[1743688389009,1.11945,1786.9,1786.8,3.2078]
[1743688389209,6.07245,1786.9,1786.8,3.2078]
[1743688389417,6.07245,1786.9,1786.8,44.0078]
[1743688389717,6.07245,1786.9,1786.8,40.8]
[1743688389915,1.11952,1786.8,1786.7,0.00838293]
[1743688390220,1.11958,1786.7,1786.6,3.2078]
[1743688390818,1.11977,1786.4,1786.3,3.2078]
[1743688391016,4.953,1786.4,1786.3,4.32763]
[1743688391214,6.0726,1786.7,1786.3,5.7078]
[1743688391418,1.1196,1786.7,1786.6,3.2078]
[1743688391614,0.00838293,1786.7,1786.6,3.2078]
[1743688392012,1.12796293,1786.7,1786.6,3.2078]
[1743688392206,0.00838293,1786.7,1786.6,3.2078]
[1743688392517,0.00838293,1786.7,1786.6,6.23714]
[1743688393018,0.00838293,1786.7,1786.6,8.73714]
[1743688393214,0.00838293,1786.7,1786.6,6.23714]
[1743688393420,0.00838293,1786.7,1786.6,8.73714]
[1743688393611,4.953,1787.4,1787.1,1.1193]
[1743688393808,1.1192,1787.3,1787.2,5.1017]
[1743688394513,1.1192,1787.3,1787.2,45.9017]
[1743688394910,3.1519,1787.3,1787.2,45.9017]
[1743688395410,0.00838293,1787.4,1787.2,45.9017]
[1743688395611,1.1192,1787.3,1787.2,45.9017]
[1743688395810,1.1192,1787.3,1787.2,40.8]
[1743688396023,1.11927,1787.2,1787.1,0.00838293]
[1743688396312,1.11924,1787.3,1787.1,0.00838293]
[1743688396520,1.12756293,1787.4,1787.2,44.0078]
[1743688396724,1.1192,1787.3,1787.2,44.0078]
[1743688396922,1.1192,1787.3,1787.2,46.0243]
[1743688397318,1.1192,1787.3,1787.2,42.8165]
[1743688397521,1.1192,1787.3,1787.2,40.8]
[1743688397722,1.11927,1787.2,1787.1,2.02488293]
[1743688397925,1.11927,1787.2,1787.1,0.00838293]
[1743688398329,1.11927,1787.2,1787.1,2.02488293]
[1743688399322,1.11927,1787.2,1787.1,0.00838293]
[1743688400025,1.11977,1786.4,1786.3,3.2078]
[1743688400226,1.11947,1786.9,1786.6,1.1196]
[1743688400421,1.11947,1786.9,1786.7,40.8]
[1743688400621,1.11945,1786.9,1786.8,3.2078]
[1743688401516,3.02365,1786.9,1786.8,3.2078]
[1743688402130,1.11952,1786.8,1786.7,40.80838293]
[1743688402433,3.02372,1786.8,1786.7,44.01618293]
[1743688402620,3.02372,1786.8,1786.7,40.80838293]
[1743688403021,3.02372,1786.8,1786.7,0.00838293]
[1743688403227,1.11952,1786.8,1786.7,3.21618293]
[1743688403422,0.00838293,1787.4,1786.7,5.71618293]
[1743688403623,0.00838293,1787.4,1787.3,3.2078]
[1743688403823,1.1192,1787.3,1787.2,3.2078]
[1743688404330,1.12756293,1787.4,1787.2,3.2078]
[1743688404630,1.12756293,1787.4,1787.3,42.6489]
[1743688405223,1.11933,1787.1,1787.0,3.2078]
[1743688405924,1.11936,1787.1,1787.0,3.2078]
[1743688406130,1.11939,1787.0,1786.9,1.8489]
[1743688406428,3.11969,1787.0,1786.9,1.8489]
[1743688407026,1.11945,1786.9,1786.8,44.0078]
[1743688407228,3.11975,1786.9,1786.8,40.8]
[1743688407425,10.95703,1787.2,1786.8,40.8]
[1743688407426,3.2078,1787.2,1786.8,44.0078]
[1743688407634,1.11939,1787.0,1786.9,1.94]
[1743688408731,1.11952,1786.8,1786.7,1.94838293]
[1743688408935,6.06952,1786.8,1786.7,1.94838293]
[1743688410329,4.95,1786.8,1786.7,3.06796293]
[1743688410533,6.06952,1786.8,1786.7,1.94838293]
[1743688410831,6.06952,1786.8,1786.7,0.00838293]
[1743688411236,6.06952,1786.8,1786.7,1.94998293]
[1743688411639,1.1195,1786.9,1786.7,1.94998293]
[1743688411943,1.1195,1786.9,1786.8,3.2078]
[1743688412539,3.0038,1786.9,1786.8,3.2078]
[1743688412739,1.11952,1786.8,1786.7,1.94998293]
[1743688413043,3.00382,1786.8,1786.7,1.94998293]
[1743688413238,3.00382,1786.8,1786.7,0.00838293]
[1743688413836,3.00382,1786.8,1786.7,1.90538293]
[1743688414643,1.11952,1786.8,1786.7,42.70538293]
[1743688414835,6.06943,1787.0,1786.7,42.70538293]
[1743688415034,4.95,1787.0,1786.8,4.32728]
[1743688415241,6.06943,1787.0,1786.9,1.9082]
[1743688415534,1.9643,1787.3,1786.9,4.70683]
[1743688415746,1.11927,1787.2,1787.1,3.2078]
[1743688416041,1.11923,1787.3,1787.1,6.2353]
[1743688416241,1.1192,1787.3,1787.2,1.9082]
[1743688416437,0.00838293,1787.4,1787.3,1.1192]
[1743688416736,1.12752293,1787.4,1787.3,3.2078]
[1743688416935,22.87703633,1787.4,1787.3,3.2078]
[1743688417536,1.1192,1787.3,1787.2,1.9082]
[1743688417736,26.70689633,1787.4,1787.2,1.9082]
[1743688417937,21.75789633,1787.4,1787.3,4.327]
[1743688418338,21.75789633,1787.4,1787.3,6.827]
[1743688418544,22.87703633,1787.4,1787.3,6.827]
[1743688418748,21.75789633,1787.4,1787.3,6.827]
[1743688419137,21.7495134,1787.7,1787.6,1.11901]
[1743688419339,7.18072634,1787.7,1787.6,4.32681]
[1743688419552,24.90902586,1788.2,1788.0,1.1187]
[1743688419750,23.79038586,1788.2,1788.1,4.3265]
[1743688419956,23.79038586,1788.2,1788.1,45.1265]
[1743688420157,24.90902586,1788.2,1788.1,44.0078]
[1743688420658,23.79038586,1788.2,1788.1,45.1265]
[1743688420860,1.12700293,1788.3,1788.1,44.0078]
[1743688421046,6.06564,1788.2,1788.1,40.8]
[1743688421351,1.1187,1788.1,1788.0,0.00838293]
[1743688421655,1.11887,1787.9,1787.7,3.2078]
[1743688421862,6.06568,1788.2,1787.8,40.8]
[1743688422056,4.947,1788.2,1788.1,4.3265]
[1743688422257,6.06564,1788.2,1788.1,3.2078]
[1743688422651,8.07634,1788.2,1788.1,3.2078]
[1743688423763,1.1187,1788.1,1788.0,0.00838293]
[1743688424057,1.11886,1787.9,1787.7,3.2078]
[1743688424253,6.9567,1787.8,1787.7,3.2078]
[1743688424453,2.0107,1787.8,1787.7,3.2078]
[1743688424659,3.12959,1787.8,1787.7,3.2078]
[1743688425255,1.11895,1787.7,1787.6,0.00838293]
[1743688425458,8.60336,1787.8,1787.2,5.0972]
[1743688425659,8.60336,1787.8,1787.0,1.11935]
[1743688425660,4.75096,1787.6,1787.0,3.2078]
[1743688425861,1.11925,1787.3,1787.0,3.2078]
[1743688426064,1.9534,1787.2,1786.9,1.11944]
[1743688426265,6.06538,1787.1,1787.0,40.8]
[1743688426458,4.946,1787.1,1786.8,3.2078]
[1743688426652,4.946,1787.1,1787.0,3.2078]
[1743688426857,4.946,1787.1,1787.0,44.0078]
[1743688427160,6.06533,1787.1,1787.0,44.0078]
[1743688427357,9.27313,1787.1,1787.0,40.8]
[1743688427657,1.11942,1787.0,1786.6,3.009]
[1743688427861,1.11945,1786.9,1786.7,1.11958]
[1743688428257,1.11945,1786.9,1786.5,3.2078]
[1743688428258,3.2078,1786.9,1786.5,3.2078]
[1743688428461,4.946,1787.1,1786.6,1.8927]
[1743688428462,8.1538,1787.1,1786.6,1.8927]
[1743688428661,2.0299,1787.0,1786.6,1.8927]
[1743688428860,1.11948,1786.9,1786.6,3.01229]
[1743688429166,2.0299,1787.0,1786.6,3.01229]
[1743688429369,2.0299,1787.0,1786.6,1.8927]
[1743688429566,3.2078,1786.9,1786.5,3.2078]
[1743688429760,1.11956,1786.8,1786.5,4.32745]
[1743688430065,4.945,1786.7,1786.6,1.11964]
[1743688430463,4.945,1786.7,1786.6,3.15754]
[1743688431564,4.945,1786.7,1786.1,3.2078]
[1743688431864,4.32762,1786.4,1786.1,1.11994]
[1743688432066,1.11991,1786.2,1785.9,4.32784]
[1743688432257,4.945,1786.3,1785.9,3.2078]
[1743688432659,0.00838293,1786.3,1786.0,2.0379]
[1743688432857,4.945,1786.2,1785.9,3.2078]
[1743688433266,1.11998,1786.1,1785.9,3.2078]
[1743688433464,1.12,1786.1,1785.9,3.2078]
[1743688433660,1.12004,1786.0,1785.8,2.0379]
[1743688434262,1.12005,1786.0,1785.8,2.0379]
[1743688434467,1.12005,1786.0,1785.9,40.8]
[1743688434468,1.12002,1786.0,1785.9,40.8]
[1743688434666,4.32782,1786.0,1785.9,40.8]
[1743688434860,6.82782,1786.0,1785.9,40.8]
[1743688435071,2.80031,1785.9,1785.3,5.0673]
[1743688435368,1.12035,1785.5,1785.3,5.0673]
[1743688435571,1.12031,1785.6,1785.4,40.8]
[1743688436167,8.1538,1785.8,1785.4,40.8]
[1743688436470,1.12033,1785.5,1785.4,40.8]
[1743688436871,1.12033,1785.5,1785.1,3.2078]
[1743688436872,4.98113,1785.5,1785.1,3.2078]
[1743688437167,4.946,1785.4,1785.1,3.2078]
[1743688437566,1.12046,1785.3,1785.2,40.8]
[1743688437766,4.946,1785.4,1785.2,40.8]
[1743688437767,6.06643,1785.4,1785.2,40.8]
[1743688437979,6.9368,1785.5,1785.2,40.8]
[1743688438168,6.9368,1785.5,1785.3,5.1577]
[1743688438473,6.9368,1785.5,1785.4,1.9499]
[1743688438672,8.05718,1785.5,1785.2,1.12049]
[1743688438975,8.05714,1785.5,1785.3,5.1577]
[1743688439163,8.05714,1785.5,1785.4,40.8]
[1743688440275,8.05714,1785.5,1784.9,3.2078]
[1743688440276,2.80104,1785.4,1784.9,3.2078]
[1743688440476,1.12064,1785.0,1784.8,3.02537]
[1743688440673,1.12069,1785.0,1784.9,40.8]
[1743688440879,4.947,1785.1,1784.9,40.8]
[1743688441170,2.97861,1785.4,1785.2,1.1205]
[1743688441368,1.8582,1785.4,1785.1,1.12056]
[1743688441569,1.12046,1785.3,1785.1,1.12056]
[1743688441770,1.12053,1785.2,1785.0,5.1124]
[1743688441973,1.12064,1785.0,1784.9,40.8]
[1743688442178,1.12064,1785.0,1784.5,3.2078]
[1743688442179,1.1209,1784.6,1784.5,5.1124]
[1743688442375,6.06788,1784.7,1784.5,6.23335]
[1743688442674,6.06783,1784.7,1784.6,40.8]
[1743688442977,6.06783,1784.7,1784.6,41.9209]
[1743688442978,4.947,1784.7,1784.6,41.9209]
[1743688443175,4.947,1784.7,1784.6,40.8]
[1743688443372,6.06783,1784.7,1784.6,40.8]
[1743688445074,9.27563,1784.7,1784.6,40.8]
[1743688445372,2.80228,1784.6,1784.2,1.9958]
[1743688445584,1.12101,1784.5,1784.2,3.11695]
[1743688445782,1.12103,1784.4,1784.2,3.11695]
[1743688445971,1.12103,1784.4,1784.0,3.2078]
[1743688445972,1.12103,1784.4,1784.3,40.8]
[1743688447074,1.121,1784.5,1784.3,40.8]
[1743688447283,1.12099,1784.5,1784.3,40.8]
[1743688447471,0.00838293,1784.6,1784.3,42.8351]